Cogmind - Beta 14 @@@ ROGUE MODE // 2024.09.06 @ 22:36:59 Player: Evel Wyn Result: Self-destructed Performance ------------- Evolutions (3) 1500 Regions Visited (4) 800 Robots Destroyed (15) 75 Value Destroyed (358) 358 Prototype IDs (0) 0 Alien Tech Used (0) 0 Bonus (0) 0 TOTAL SCORE: 2733 Bonus ------- None Cogmind --------- Core Integrity 573/700 Matter 186/300 Energy 125/125 System Corruption 0% Temperature Cool (0) Movement Walking (130) Location -7/Factory Parts ------- > --- POWER (2) -------- Light Ion Engine > --- PROPULSION (4) --- Improved Titanium Leg Improved Titanium Leg Improved Titanium Leg Improved Titanium Leg > --- UTILITY (4) ------ Small Storage Unit Improved Targeting Computer Layered Light Armor Plating Layered Light Armor Plating > --- WEAPON (3) ------- Pulse Rifle > --- INVENTORY (8) ---- Improved Titanium Leg Improved Titanium Leg Wheel Improved Light Armor Plating Layered Light Armor Plating Heavy Assault Rifle Peak State ------------ > --- POWER ------------ Light Nuclear Core > --- PROPULSION ------- Improved Aluminum Leg Improved Titanium Leg Improved Titanium Leg Improved Titanium Leg > --- UTILITY ---------- Small Storage Unit Improved Targeting Computer Layered Light Armor Plating Layered Light Armor Plating > --- WEAPON ----------- Lightning Gun Minigun Mini Grenade Launcher > --- INVENTORY -------- Improved Titanium Leg Improved Titanium Leg Improved Titanium Leg Wheel Layered Light Armor Plating Pulse Rifle Heavy Assault Rifle [Rating: 39] Favorites ----------- Power Ion Engine Engine Ion Engine Power Core Light Nuclear Core Propulsion Aluminum Leg Treads Light Treads Leg Aluminum Leg Wheel Wheel Utility Small Storage Unit Device Shield Generator Storage Small Storage Unit Processor Improved Targeting Computer Protection Layered Light Armor Plating Weapon Assault Rifle Energy Gun Pulse Rifle Ballistic Gun Assault Rifle Launcher Mini Grenade Launcher Build | -11 -10 -9 -8 -7 ------- Run | Yrd Mat Mat Mat Fac Slots Evolved 6 | . . 2 2 2 Power 1 | . . . 1 . Propulsion 2 | . . 2 . . Utility 2 | . . . 1 1 Weapon 1 | . . . . 1 Parts Attached 50 | 8 6 20 3 13 Power 4 | 1 . 2 . 1 Engine 3 | 1 . 1 . 1 Core 1 | . . 1 . . Reactor . | . . . . . Propulsion 25 | 4 4 12 . 5 Treads 7 | . 2 5 . . Leg 14 | 2 2 6 . 4 Wheel 4 | 2 . 1 . 1 Hover . | . . . . . Flight . | . . . . . Utility 8 | 1 1 1 1 4 Device 3 | . 1 1 . 1 Storage 1 | 1 . . . . Processor 1 | . . . . 1 Hackware . | . . . . . Protection 3 | . . . 1 2 Artifact . | . . . . . Weapon 13 | 2 1 5 2 3 Energy Gun 5 | . . 3 . 2 Energy Cannon . | . . . . . Ballistic Gun 7 | 2 1 2 2 . Ballistic Cannon . | . . . . . Launcher 1 | . . . . 1 Special Weapon . | . . . . . Impact Weapon . | . . . . . Slashing Weapon . | . . . . . Piercing Weapon . | . . . . . Special Melee Weapon . | . . . . . Unidentified Prototypes . | . . . . . Parts Lost 9 | . . 2 1 6 Power 1 | . . . . 1 Propulsion 2 | . . . 1 1 Utility 2 | . . 1 . 1 Weapon 4 | . . 1 . 3 Highest Loss Streak 6 | . . 1 1 6 To Critical Strikes . | . . . . . Average Slot Usage (%) 89 | . 88 93 75 87 Engine 7 | . 14 9 . 2 Core 1 | . . . 9 4 Treads 4 | . 8 6 . . Leg 25 | . 19 25 27 28 Wheel 4 | . . 8 3 1 Device 5 | . 3 9 . 1 Storage 10 | . 14 11 9 7 Processor 1 | . . . . 5 Protection 4 | . . . 9 14 Energy Gun 7 | . . 9 9 7 Ballistic Gun 13 | . 28 11 9 6 Launcher 1 | . . . . 5 Peak Build Rating 39 | 6 7 17 16 39 Average Rating 15 | 4 6 12 15 33 On Entrance 8 | . 6 7 12 15 Naked Turns . | . . . . . Heaviest Build 26 | 14 14 23 19 26 Greatest Support 80 | 20 40 60 33 80 Greatest Overweight (x) 1 | 1 . . . 1 Average Overweight (x) . | . . . . . Largest Inventory Capacity 8 | 8 8 8 8 8 Average Capacity 7 | 7 8 8 8 8 Most Carried 8 | 7 6 8 6 8 Average Carried 6 | 4 6 7 5 6 Final Capacity 8 | 8 8 8 8 8 Final Carried 6 | 6 6 6 6 6 Class Distribution -------------------- 85% | Mutant 13% | Tank Dominant Class ---------------- Mutant | -10/Materials Mutant | -9/Materials Mutant | -8/Materials Tank | -7/Factory Resources | -11 -10 -9 -8 -7 ----------- Run | Yrd Mat Mat Mat Fac Matter Collected 715 | 192 123 175 154 71 Remotely 24 | . . 24 . . Salvage Created 452 | . 123 225 . 104 Parts 31 | . 7 17 . 7 Haulers Intercepted . | . . . . . Recyclers Shooed . | . . . . . Parts Field Recycled . | . . . . . Retrieved Matter . | . . . . . Parts Self-Destructed . | . . . . . Prevented . | . . . . . Kills | -11 -10 -9 -8 -7 ------- Run | Yrd Mat Mat Mat Fac Combat Hostiles Destroyed 11 | . 3 7 . 1 Guns 11 | . 3 7 . 1 Classes Destroyed 7 | . 2 3 . 2 Worker 2 | . . . . 2 Builder 1 | . . . . 1 Watcher 1 | . 1 . . . Swarmer 3 | . . 3 . . Grunt 5 | . 3 2 . . Brawler 1 | . . 1 . . Sentry 2 | . . 1 . 1 Best Kill Streak 4 | . 4 4 . 4 Combat Bots Only 4 | . 3 4 . 1 Max Kills in Single Turn 2 | . 1 1 . 2 Gunslinging . | . . . . . Exploded . | . . . . . Melee . | . . . . . Uniques/NPCs Destroyed . | . . . . . Combat | -11 -10 -9 -8 -7 -------- Run | Yrd Mat Mat Mat Fac Hostile Shots Fired 392 | . 18 99 15 260 Missed 155 | . 2 34 6 113 Damage Taken 2531 | . 177 841 139 1374 Core 283 | . 33 123 . 127 Absorbed by Shields 107 | . . 107 . . Core Remaining (%) 88 | 100 86 69 100 . Volleys Fired 41 | . 11 18 . 12 Largest 3 | . 2 2 . 3 Hottest 126 | . 40 126 . 110 Shots Fired 76 | . 22 36 . 18 Gun 73 | . 22 36 . 15 Cannon . | . . . . . Launcher 3 | . . . . 3 Special . | . . . . . Kinetic 56 | . 22 28 . 6 Thermal 15 | . . 8 . 7 Explosive 3 | . . . . 3 Electromagnetic 2 | . . . . 2 Robot Hit Streak 19 | . 9 16 . 19 Robot Miss Streak 2 | . 1 2 . . Penetration Max . | . . . . . Secondary Targets 4 | . 2 2 . . Max Gunslinging Chain 1 | . 1 1 . . Shots Hit Robots 62 | . 19 27 . 16 Core Hits 26 | . 6 11 1 8 Critical Kills . | . . . . . Critical Parts Destroyed 2 | . 1 1 . . Critical Strikes 3 | . 1 2 . . Burn 1 | . . 1 . . Destroy 2 | . 1 1 . . Melee Attacks . | . . . . . Impact . | . . . . . Slashing . | . . . . . Piercing . | . . . . . Sneak Attacks . | . . . . . Combat Hostiles . | . . . . . Follow-up Attacks . | . . . . . Damage Inflicted 1004 | . 231 382 14 377 Guns 867 | . 231 382 . 254 Cannons . | . . . . . Explosions 111 | . . . . 111 Melee . | . . . . . Ramming 26 | . . . 14 12 Kinetic 614 | . 231 279 . 104 Thermal 221 | . . 103 . 118 Explosive 111 | . . . . 111 Electromagnetic 32 | . . . . 32 Impact . | . . . . . Slashing . | . . . . . Piercing . | . . . . . Highest Corruption . | . . . . . Average Corruption . | . . . . . Corruption Purged . | . . . . . Corruption Blocked . | . . . . . Overload Shots . | . . . . . Overflow Damage . | . . . . . Projectiles . | . . . . . Explosions . | . . . . . Melee . | . . . . . Knockbacks . | . . . . . Impact . | . . . . . Kinetic . | . . . . . Secondary . | . . . . . Self-Inflicted Damage 41 | . . . . 41 Shots 1 | . . . . 1 Rammed . | . . . . . Targets Rammed 4 | . . . 1 3 Kicked 4 | . . . 1 3 Crushed . | . . . . . Highest Temperature 148 | . . 126 6 148 Average Temperature 60 | . . 59 6 62 Received Heat Transfer 676 | . 96 220 54 306 Siege Activations . | . . . . . Robots Corrupted . | . . . . . Combat Hostiles . | . . . . . Parts Fried . | . . . . . Impact Corruptions . | . . . . . Robots Melted . | . . . . . Combat Hostiles . | . . . . . Parts Melted . | . . . . . Heat Transferred 555 | . . 296 . 259 Parts Sabotaged . | . . . . . Parts Stolen . | . . . . . Parts Stripped . | . . . . . Power Chain Reactions . | . . . . . Alert | -11 -10 -9 -8 -7 ------- Run | Yrd Mat Mat Mat Fac Peak Influence 241 | . 92 241 85 96 Initial 65 | . . 38 65 38 Average 100 | . 43 164 67 50 Maximum Alert Level 1 | . . 1 . . Low Security (%) 79 | 100 100 56 100 100 Level 1 20 | . . 43 . . Level 2 . | . . . . . Level 3 . | . . . . . Level 4 . | . . . . . Level 5 . | . . . . . High Security . | . . . . . Max Security . | . . . . . Squads Dispatched 6 | . 2 1 . 3 Investigation 2 | . 1 . . 1 Extermination 1 | . . . . 1 Reinforcement 3 | . 1 1 . 1 Assault . | . . . . . Garrison . | . . . . . Intercept . | . . . . . Searches Triggered . | . . . . . Construction Impeded . | . . . . . Haulers Reinforced . | . . . . . Active Scanning Responses . | . . . . . Cargo Convoy Interrupts . | . . . . . Stealth | -11 -10 -9 -8 -7 --------- Run | Yrd Mat Mat Mat Fac Distress Signals 4 | . 2 1 1 . Communications Jammed . | . . . . . Distress Signals . | . . . . . Times Spotted 36 | . 7 22 3 4 Peak Tracking Total 8 | . 3 8 4 4 Tactical Retreats 3 | . . 3 . . Traps | -11 -10 -9 -8 -7 ------- Run | Yrd Mat Mat Mat Fac Traps Triggered 1 | . . . . 1 Indirectly . | . . . . . Trap Hack Attempts . | . . . . . Triggered . | . . . . . Disarmed . | . . . . . Reprogrammed . | . . . . . Reused . | . . . . . Traps Extracted . | . . . . . Installed . | . . . . . Triggered . | . . . . . Machines | -11 -10 -9 -8 -7 ---------- Run | Yrd Mat Mat Mat Fac Machines Disabled . | . . . . . Max in Single Turn . | . . . . . Machines Repaired . | . . . . . Machines Dismantled . | . . . . . Machines Sabotaged . | . . . . . Overloaded Fab Kills . | . . . . . Hacking | -11 -10 -9 -8 -7 --------- Run | Yrd Mat Mat Mat Fac Machines Accessed 3 | . 1 1 . 1 Terminals 2 | . . 1 . 1 Fabricators . | . . . . . Repair Stations . | . . . . . Recycling Units 1 | . 1 . . . Scanalyzers . | . . . . . Garrison Access . | . . . . . Total Hacks 7 | . 3 2 . 2 Successful 3 | . 1 2 . . Failed 4 | . 2 . . 2 Catastrophic 1 | . 1 . . . Database Lockouts . | . . . . . Manual 1 | . . 1 . . Terminals 4 | . . 2 . 2 Fabricators . | . . . . . Repair Stations . | . . . . . Recycling Units 3 | . 3 . . . Scanalyzers . | . . . . . Garrison Access . | . . . . . Terminal Hacks 2 | . . 2 . . Maintenance Status 1 | . . 1 . . Transport Status 1 | . . 1 . . Fabricator Hacks . | . . . . . Repair Station Hacks . | . . . . . Recycling Unit Hacks 1 | . 1 . . . Report Inventory 1 | . 1 . . . Scanalyzer . | . . . . . Garrison Access Hacks . | . . . . . Unauthorized Hacks . | . . . . . Terminals . | . . . . . Fabricators . | . . . . . Repair Stations . | . . . . . Recycling Units . | . . . . . Scanalyzers . | . . . . . Garrison Access . | . . . . . Data Cores Recovered . | . . . . . Used . | . . . . . Hacking Detections 2 | . 1 . . 1 Full Trace Events 2 | . 1 . . 1 Feedback Events . | . . . . . Feedback Blocked . | . . . . . Robot Schematics Acquired . | . . . . . Robots Built . | . . . . . Authchips . | . . . . . Time . | . . . . . Total Robot Build Rating . | . . . . . Part Schematics Acquired . | . . . . . Parts Built . | . . . . . Authchips . | . . . . . Time . | . . . . . Total Part Build Rating . | . . . . . Parts Repaired . | . . . . . Time . | . . . . . Parts Recycled . | . . . . . Recycled Matter . | . . . . . Retrieved Matter . | . . . . . Retrieved Components . | . . . . . Parts Scanalyzed . | . . . . . Part Schematics Acquired . | . . . . . Parts Damaged . | . . . . . Bothacking | -11 -10 -9 -8 -7 ------------ Run | Yrd Mat Mat Mat Fac Used RIF Installer . | . . . . . Robots Hacked . | . . . . . Non-combat . | . . . . . Combat . | . . . . . Robot Hacks Applied . | . . . . . Relay Couplers Released . | . . . . . Fabnet Peak Effective % . | . . . . . Robots Rewired . | . . . . . Allies Hacked . | . . . . . Hacks Repelled . | . . . . . Allies | -11 -10 -9 -8 -7 -------- Run | Yrd Mat Mat Mat Fac Total Allies . | . . . . . Largest Group . | . . . . . Highest-Rated Group . | . . . . . Highest-Rated Ally . | . . . . . Total Orders . | . . . . . Ally Attacks . | . . . . . Total Damage . | . . . . . Kills . | . . . . . Allies Corrupted . | . . . . . Allies Melted . | . . . . . Intel | -11 -10 -9 -8 -7 ------- Run | Yrd Mat Mat Mat Fac Robot Analysis Total . | . . . . . Derelict Logs Recovered . | . . . . . Drone Launches . | . . . . . Drone Recoveries . | . . . . . Exploration | -11 -10 -9 -8 -7 ------------- Run | Yrd Mat Mat Mat Fac Turns Passed 1290 | 62 242 590 115 281 Spaces Moved 840 | 42 153 394 92 159 Core 5 | 5 . . . . Treads 85 | . 28 57 . . Legs 734 | 21 125 337 92 159 Wheels 16 | 16 . . . . Hover . | . . . . . Flight . | . . . . . Fastest Speed 50 | 50 120 120 120 120 Average Speed 124 | 100 127 125 120 127 Slowest Speed 200 | 120 160 160 120 200 Overloaded Moves . | . . . . . Propulsion Burnouts . | . . . . . Robots Hopped . | . . . . . Cave-ins Triggered . | . . . . . Exploration Rate (%) 17 | 4 30 32 16 5 Regions Visited 4 Branch Regions . Pre-discovered Areas . | . . . . . Known Exits Taken . | . . . . . Unknown Exits Taken 4 | 1 1 1 1 . Scrap Searched . | . . . . . Spaces Dug . | . . . . . Terrain Destroyed 30 | . . . . 30 Melee . | . . . . . Projectile . | . . . . . AOE 30 | . . . . 30 Terrain Rammed . | . . . . . Walls Destroyed . | . . . . . Machines Disabled . | . . . . . Actions | -11 -10 -9 -8 -7 --------- Run | Yrd Mat Mat Mat Fac Total 1001 | 58 175 450 96 222 Wait 34 | 2 6 5 . 21 Move 836 | 41 152 393 91 159 Hop . | . . . . . Pick Up 23 | 7 . 7 1 8 Fast Attach 11 | 5 1 1 . 4 Attach 12 | 1 . 3 2 6 Detach . | . . . . . Swap 27 | 2 5 16 1 3 Drop 13 | . . 7 . 6 Fire 41 | . 11 18 . 12 Melee . | . . . . . Ram . | . . . . . Kick 4 | . . . 1 3 Crush . | . . . . . Escape Stasis . | . . . . . Rewire . | . . . . . Trap . | . . . . . Miscellaneous . | . . . . . Route ------- -11/Scrapyard -10/Materials -9/Materials (discovered 2 exits: [*Mat x2]) -8/Materials -7/Factory History --------- Turn | Location | Event 19 | -11/Scrapyard | Discovered new exit (range 16) 63 | -11/Scrapyard | Entered Materials 261 | -10/Materials | Discovered new exit (range 16) 303 | -10/Materials | Build established: Mutant 305 | -10/Materials | Entered another Materials area 305 | -9/Materials | Evolved 2 slots: Propulsion x2 578 | -9/Materials | Discovered new exit (range 16) 890 | -9/Materials | Discovered new exit (range 5) 895 | -9/Materials | Entered another Materials area 895 | -8/Materials | Evolved 2 slots: Power x1, Utility x1 1000 | -8/Materials | Discovered new exit (range 10) 1010 | -8/Materials | Entered Factory 1010 | -7/Factory | Evolved 2 slots: Utility x1, Weapon x1 1281 | -7/Factory | Lost 6 parts (1p1n1u3w) 1291 | -7/Factory | Self-destructed Last Messages --------------- 01217_ Acquired Imp. Light Armor Plating. 01224_ K-01 Serf collects debris. 01224_ Kicked K-01 Serf out of the way. 01225_ Lightning Gun destroyed. 01225_ Kicked K-01 Serf out of the way. 01230_ The unstable cave ceiling collapses. 01236_ ALERT: Hostiles spotted, dispatching reinforcements to Terminal F006. 01236_ Penetrated by Slug. 01247_ Mni. Grenade Launcher destroyed. 01250_ Penetrated by Slug. 01250_ Minigun destroyed. 01260_ ALERT: Rogue bot located, Programmers report to Factory Zone 9B. 01270_ Slug penetrates Wall. 01272_ Penetrated by Slug. 01273_ Slug penetrates Wall. 01280_ Penetrated by Slug. 01290_ Slug penetrates K-01 Serf. 01290_ K-01 Serf destroyed. Map ----- +----------------------------------------------------+ | ?????????????????????????????????????????????????? | | ?????????????????????????????????????????????????? | | ?????????????????????????????????????????????????? | | ?????????????????????????????????????????????????? | | ?????????????????????????????????????????????????? | | ?????????????????????????????????????????????????? | | ?????????????????????????????????????????????????? | | ?????????????????????????????????????????????????? | | ?????????????????????????????????????????????????? | | ?????????????????????????????????????????????????? | | ???????????????????????? ??????????????????????? | | ???????????????????????? ??????????????????????? | | ???????????????????????? ??????????????????????? | | ???????????????????????# #?????????????????????? | | ???????????????????????# #?????????????????????? | | ???????????????????????+ g?????????????????????? | | ???????????????????????# #?????????????????????? | | ???????????????????????# #?????????????????????? | | ???????????????????????# #?????????????????????? | | ???????????????????????# #?????????????????????? | | ???????????????????????# +?????????????????????? | | ???????????????????????# #?????????????????????? | | ???????????????????????# #?????????????????????? | | ???????????????????????# #?????????????????????? | | ???????????????????????# =%#?????????????????????? | | ???????????????????????# @=#?????????????????????? | | ???????????????????????# #?????????????????????? | | ???????????????????????# #?????????????????????? | | ??????????????????????## #?????????????????????? | | ??????????????????????# #?????????????????????? | | ??????????????????????#T #?????????????????????? | | ??????????????????????## #?????????????????????? | | ?????????? ############ #?????????????????????? | | ??####??? #?????????????????????? | | ??# ???? #?????????????????????? | | ??# #???? h #?????????????????????? | | ### ##???? ############/#####???????????????????? | | # #?????????????# h #???????????????????? | | #######???????#!! """ #???????????????????? | | % ## ###?????#! """ #???????????????????? | | =# ! ####### """ #???????????????????? | | = = + #???????????????????? | | #= ####### / #???????????????????? | | #### ##?????# ! #???????????????????? | | # ###?####??????# / #???????????????????? | | #####??????????????###########???????????????????? | | | | | | | | | +----------------------------------------------------+ Best States ------------- Heat Dissipation 34 Energy Generation 14 Energy Capacity 265 Matter Stores 255 Matter Capacity 300 Sight Range 16 Terrain Scan Density 10 Armor Coverage 300 Evasion (%) 55 Targeting Accuracy 6 Recoil Reduction 3 Item Schematics ----------------- None Robot Schematics ------------------ None Fabricated ------------ Nothing Alien Tech Used ----------------- None Achievements -------------- None Challenges ------------ None Game ------ Seed ImprinterHardcellInsulator Manual? 0 Play Time 00:25:21 Cumulative 20.9 hours Start 2024.09.06 @ 22:11:55 End 2024.09.06 @ 22:36:59 Sessions 1 Manual Loads 0 Difficulty Rogue Special Mode None Game No. 22 Rogue 22 Adventurer 0 Explorer 0 Win Type - Total 0 Types 0/0/0/0/0/0/0/0/0 Lore% 14 Gallery% 20 Achievement% 19 Wizard Run 0 Options --------- Layout 1 ASCII 0 Keyboard 1 Movement Numpad Keybinds 0 Fullscreen 2 Font 48/Tamsyn Map View 50x35 Zoom Use 0% Tactical HUD 1 Map Filters NONE Filters NONE Steam 1 RUN: 3076a1e5-280d-4c41-b710-10262de96e3c